Workbook

Sheet Identification
A1: Student Name: | B1: Your Name Here
A2: 5 Digit Identification Number: | B2: 11111
A3: Date: | B3: 2017-07-20
A6: Random Number
B8: =B2/10000 -> 1.1111
B9: =TRUNC(B8) -> 1
B10: =B2/1000 -> 11.111
B11: =TRUNC(B10) -> 11
B12: =B11-(B9*10) -> 1
B13: =B2/100 -> 111.11
B14: =TRUNC(B13) -> 111
B15: =B14-(B11*10) -> 1
B16: =B2/10 -> 1111.1
B17: =TRUNC(B16) -> 1111
B18: =B17-(B14*10) -> 1
B19: =B2 -> 11111
B20: =TRUNC(B19) -> 11111
B21: =B20-(B17*10) -> 1
B23: =B9+B12+B15+B18+B21 -> 5
A26: 1 | B26: 6 | C26: =IF(A26=$B$23,B26,0) -> 0
A27: 2 | B27: 8 | C27: =IF(A27=$B$23,B27,0) -> 0
A28: 3 | B28: 3 | C28: 0
A29: 4 | B29: 4 | C29: 0
A30: 5 | B30: 9 | C30: 9
A31: 6 | B31: 1 | C31: 0
A32: 7 | B32: 2 | C32: 0
A33: 8 | B33: 3 | C33: 0
A34: 9 | B34: 5 | C34: 0
A35: 10 | B35: 7 | C35: 0
A36: 11 | B36: 9 | C36: 0
A37: 12 | B37: 6 | C37: 0
A38: 13 | B38: 6 | C38: 0
A39: 14 | B39: 4 | C39: 0
A40: 15 | B40: 3 | C40: 0
A41: 16 | B41: 2 | C41: 0
A42: 17 | B42: 6 | C42: 0
A43: 18 | B43: 2 | C43: 0
A44: 19 | B44: 1 | C44: 0
A45: 20 | B45: 1 | C45: 0
A46: 21 | B46: 7 | C46: 0
A47: 22 | B47: 9 | C47: 0
A48: 23 | B48: 8 | C48: 0
A49: 24 | B49: 7 | C49: 0
A50: 25 | B50: 3 | C50: 0
A51: 26 | B51: 6 | C51: 0
A52: 27 | B52: 1 | C52: 0
A53: 28 | B53: 2 | C53: 0
A54: 29 | B54: 3 | C54: 0
A55: 30 | B55: 4 | C55: =IF(A55=$B$23,B55,0) -> 0
A56: 31 | B56: 5 | C56: 0
A57: 32 | B57: 7 | C57: 0
A58: 33 | B58: 8 | C58: 0
A59: 34 | B59: 9 | C59: 0
A60: 35 | B60: 5 | C60: 0
A61: 36 | B61: 3 | C61: 0
A62: 37 | B62: 5 | C62: 0
A63: 38 | B63: 7 | C63: 0
A64: 39 | B64: 3 | C64: 0
A65: 40 | B65: 6 | C65: 0
A66: 41 | B66: 7 | C66: 0
A67: 42 | B67: 8 | C67: 0
A68: 43 | B68: 2 | C68: 0
A69: 44 | B69: 5 | C69: 0
A70: 45 | B70: 7 | C70: 0
A71: Randon numbers | C71: =SUM(C26:C70) -> 9 | D71: =B23 -> 5 | E71: =B14 -> 111 | F71: =B17 -> 1111 | G71: =B19 -> 11111 | H71: =G71/C71 -> 1234.555556
C72: =D72/9 -> 1.388888889 | D72: =D71*2.5 -> 12.5 | E72: =E71*2.5 -> 277.5 | F72: =F71*2.5 -> 2777.5 | G72: =G71*2.5 -> 27777.5 | H72: =H71*2.5 -> 3086.388889
C73: =(C72+C71)/2 -> 5.194444444 | D73: =$C$73*D71 -> 25.97222222 | E73: =$C$73*E71 -> 576.5833333 | F73: =$C$73*F71 -> 5771.027778 | G73: =$C$73*G71 -> 57715.47222 | H73: =$C$73*H71 -> 6412.830247
C74: =SUM(C72:C73) -> 6.583333333 | D74: =$C$74*C71 -> 59.25 | E74: =$C$74*D71 -> 32.91666667 | F74: =$C$74*E71 -> 730.75 | G74: =$C$74*F71 -> 7314.083333 | H74: =$C$74*G71 -> 73147.41667

Sheet Periodic
B1: Please fill out the cells in column C by selecting the correct value from the drop-down menu. The correct answer will result in the cell turning to a green shade allowing you to monitor your progress and determine which topics require more study. | J1: All parts of the problem refer back to this tab. Any changes to the cells below will flow through to the rest of the workbook with the exception of # of units purchased and sold | R1: =Identification!$C$71 -> 9 | S1: =Identification!$D$71 -> 5 | T1: =Identification!$E$71 -> 111 | U1: =Identification!$F$71 -> 1111 | V1: =Identification!$G$71 -> 11111 | W1: =Identification!$H$71 -> 1234.555556
B2: =CONCATENATE(Identification!B1, " Corporation is in its first year of operation and engages in the purchase and resale of military equipment. Purchases and sales for the first year of operation were as follows:" ) -> Your Name Here Corporation is in its first year of operation and engages in the purchase and resale of military equipment. Purchases and sales for the first year of operation were as follows: | R2: =S2/9 -> 1.388888889 | S2: =S1*2.5 -> 12.5 | T2: =T1*2.5 -> 277.5 | U2: =U1*2.5 -> 2777.5 | V2: =V1*2.5 -> 27777.5 | W2: =W1*2.5 -> 3086.388889
B3: Date | C3: Purchases | R3: =(R1+R2)/2 -> 5.194444444 | S3: =$R$3*S1 -> 25.97222222 | T3: =$R$3*T1 -> 576.5833333 | U3: =$R$3*U1 -> 5771.027778 | V3: =$R$3*V1 -> 57715.47222 | W3: =$R$3*W1 -> 6412.830247
B4: 2008-01-07 | C4: =CONCATENATE(P7, " units @ ",TEXT(Q7,"$#,##0")," each") -> 50 units @ $31,250 each | K4: Sales | N4: Purchases | R4: =SUM(R2:R3) -> 6.583333333 | S4: =$R$4*R1 -> 59.25 | T4: =$R$4*S1 -> 32.91666667 | U4: =$R$4*T1 -> 730.75 | V4: =$R$4*U1 -> 7314.083333 | W4: =$R$4*V1 -> 73147.41667
B5: 2008-03-15 | C5: =CONCATENATE(P8, " units @ ",TEXT(Q8,"$#,##0")," each") -> 70 units @ $32,250 each | K5: Total Sales | L5: # of Units | M5: Sales Price | O5: Total Cost | P5: # of Units | Q5: Purchase Price
B6: 2008-06-16 | C6: =CONCATENATE(P9, " units @ ",TEXT(Q9,"$#,##0")," each") -> 30 units @ $32,750 each
B7: 2008-08-03 | C7: =CONCATENATE(P10, " units @ ",TEXT(Q10,"$#,##0")," each") -> 90 units @ $33,250 each | O7: =P7*Q7 -> 1562500 | P7: 50 | Q7: =IF(S8<100,S8*1000,S8*100) -> 31250 | R7: =R1*2.5 -> 22.5 | S7: 12.5 | T7: 277.5 | U7: 2777.5 | V7: 27777.5 | W7: 3086.388889
B8: 2008-10-11 | C8: =CONCATENATE(P11, " units @ ",TEXT(Q11,"$#,##0")," each") -> 25 units @ $34,250 each | O8: =P8*Q8 -> 2257500 | P8: 70 | Q8: =Q7+1000 -> 32250 | R8: =R2*2.5 -> 3.472222222 | S8: 31.25 | T8: 693.75 | U8: 6943.75 | V8: 69443.75 | W8: 7715.972222
B9: Date | C9: Sales | K9: =L9*M9 -> 4421250 | L9: 90 | M9: =Q9*1.5 -> 49125 | O9: =P9*Q9 -> 982500 | P9: 30 | Q9: =Q8+500 -> 32750 | R9: 12.98611111 | S9: 64.93055556 | T9: 1441.458333 | U9: 14427.56944 | V9: 144288.6806 | W9: 16032.07562
O10: =P10*Q10 -> 2992500 | P10: 90 | Q10: =Q9+500 -> 33250 | R10: 16.45833333 | S10: 148.125 | T10: 82.29166667 | U10: 1826.875 | V10: 18285.20833 | W10: 182868.5417
B11: 2017-03-16 | C11: =CONCATENATE(L9," units @ ",TEXT(M9,"$#,##0")," each") -> 90 units @ $49,125 each | K11: =L11*M11 -> 6678750 | L11: 130 | M11: =Q11*1.5 -> 51375 | O11: =P11*Q11 -> 856250 | P11: 25 | Q11: =Q10+1000 -> 34250
B12: 2017-11-01 | C12: =CONCATENATE(L11," units @ ",TEXT(M11,"$#,##0")," each") -> 130 units @ $51,375 each | H12: SOLUTION
A15: (a) | B15: =CONCATENATE("If ",Identification!B1, " Corporation uses the first-in, first-out (FIFO) inventory method (periodic approach), what values would be assigned to ending inventory and cost of goods sold? How much is gross profit?") -> If Your Name Here Corporation uses the first-in, first-out (FIFO) inventory method (periodic approach), what values would be assigned to ending inventory and cost of goods sold? How much is gross profit? | O15: COMMENTS: (Had to moved to a textbox since hiding comment boxes resulted in an error) H21, H33: Cells that are hardcoded and need to be changed if the number of units are altered Q7 : This is formatted to fall within 1,000 and 100,000 based on the randomized number in Cell R8 S8: This is the random number I used to make the problem unique to each user
J16: 0
B17: Beginning inventory | C17: 0 | H17: 0 | J17: =$H$21 -> 7130000 | K17: FIFO COGS
B18: Plus: Purchases | C18: 0 | H18: =SUM(O7:O11) -> 8651250 | J18: =$H$18 -> 8651250 | K18: Purchases
B19: Cost of goods available for sale | C19: =C18+C17 -> 0 | H19: =H18+H17 -> 8651250 | J19: =$H$25 -> 3970000 | K19: FIFO Gross Profit
B20: Less: Ending inventory | C20: 0 | H20: =H19-H21 -> 1521250 | J20: =$H$23 -> 11100000 | K20: Sales
B21: Cost of goods sold | C21: =C19-C20 -> 0 | H21: =P7*Q7+P8*Q8+P9*Q9+70*Q10 -> 7130000 | J21: =$H$20 -> 1521250 | K21: FIFO End Inventory
J22: =$H$33 -> 7245000 | K22: LIFO COGS
B23: Sales | C23: 0 | H23: =SUM(K9:K11) -> 11100000 | J23: =$H$32 -> 1406250 | K23: LIFO End Inventory
B24: Cost of goods sold | C24: =C21 -> 0 | H24: =H21 -> 7130000 | J24: =$H$37 -> 3855000 | K24: LIFO Gross Profit
B25: Gross profit | C25: 0 | H25: =H23-H24 -> 3970000
A27: (b) | B27: =CONCATENATE("If ",Identification!B1, " Corporation uses the last-in, first-out (LIFO) inventory method (periodic approach), what values would be assigned to ending inventory and cost of goods sold? How much is gross profit?") -> If Your Name Here Corporation uses the last-in, first-out (LIFO) inventory method (periodic approach), what values would be assigned to ending inventory and cost of goods sold? How much is gross profit?
B29: Beginning inventory | C29: 0 | H29: 0
B30: Plus: Purchases | C30: 0 | H30: =SUM(O7:O11) -> 8651250
B31: Cost of goods available for sale | C31: =C30+C29 -> 0 | H31: =H30+H29 -> 8651250
B32: Less: Ending inventory | C32: 0 | H32: =H31-H33 -> 1406250
B33: Cost of goods sold | C33: =C31-C32 -> 0 | H33: =P11*Q11+P10*Q10+P9*Q9+P8*Q8+5*Q7 -> 7245000
B35: Sales | C35: 0 | H35: =SUM(K9:K11) -> 11100000
B36: Cost of goods sold | C36: =C33 -> 0 | H36: =H33 -> 7245000
B37: Gross profit | C37: 0 | H37: =H35-H36 -> 3855000

Sheet Perpetual
B1: Select the correct answer from the drop-down options for all cells highlighted red. Once the correct answer is selected the cell will automatically be shaded green allowing you to monitor your progress and determine which topics require further study.
G3: =CONCATENATE(Identification!B1, " Corporation is in its first year of operation and engages in the purchase and resale of military equipment. Purchases and sales for the first year of operation were as follows:" ) -> Your Name Here Corporation is in its first year of operation and engages in the purchase and resale of military equipment. Purchases and sales for the first year of operation were as follows:
G4: Date | H4: Purchases
G5: 2008-01-07 | H5: =AF22 -> 50 units @ $31,250 each
G6: 2008-03-15 | H6: =AF23 -> 70 units @ $32,250 each
G7: 2008-06-16 | H7: =AF24 -> 30 units @ $32,750 each
G8: 2008-08-03 | H8: =AF25 -> 90 units @ $33,250 each
G9: 2008-10-11 | H9: =AF26 -> 25 units @ $34,250 each
G10: Date | H10: Sales
G12: 2017-03-16 | H12: =AF29 -> 90 units @ $49,125 each
G13: 2017-11-01 | H13: =AF30 -> 130 units @ $51,375 each
A16: (c) | B16: =CONCATENATE("If ",Identification!B1, " Corporation uses the first-in, first-out (FIFO) inventory method (perpetual approach), what values would be assigned to ending inventory and cost of goods sold? How much is gross profit?") -> If Your Name Here Corporation uses the first-in, first-out (FIFO) inventory method (perpetual approach), what values would be assigned to ending inventory and cost of goods sold? How much is gross profit?
B18: Date | D18: Purchases | G18: Sales | J18: Cost of Goods Sold | L18: Balance | O18: Balance Column Drop Down | T18: Date | V18: Purchases | Y18: Sales | AB18: Cost of Goods Sold | AD18: Balance | AP18: =Identification!$C$71 -> 9 | AQ18: =Identification!$D$71 -> 5 | AR18: =Identification!$E$71 -> 111 | AS18: =Identification!$F$71 -> 1111 | AT18: =Identification!$G$71 -> 11111 | AU18: =Identification!$H$71 -> 1234.555556
B19: =T19 -> 2008-01-07 | D19: =V19 -> 50 units @ $31,250 each = | E19: =W19 -> 1562500 | T19: =G5 -> 2008-01-07 | V19: =CONCATENATE(AF22, " =") -> 50 units @ $31,250 each = | W19: =$AM$24 -> 1562500 | AD19: =CONCATENATE(AN24," x ",TEXT(AO24,"$#,##0")," = ",TEXT(AM24,"$#,##0")) -> 50 x $31,250 = $1,562,500 | AP19: =AQ19/9 -> 1.388888889 | AQ19: =AQ18*2.5 -> 12.5 | AR19: =AR18*2.5 -> 277.5 | AS19: =AS18*2.5 -> 2777.5 | AT19: =AT18*2.5 -> 27777.5 | AU19: =AU18*2.5 -> 3086.388889
B20: =T20 -> 2008-03-15 | D20: =V20 -> 70 units @ $32,250 each = | E20: =W20 -> 2257500 | L20: =L19 -> 0 | P20: =$AD$40 -> 20 x $33,250 = $665,000 | T20: =G6 -> 2008-03-15 | V20: =CONCATENATE(AF23, " =") -> 70 units @ $32,250 each = | W20: =$AM$25 -> 2257500 | AD20: =CONCATENATE(AN24," x ",TEXT(AO24,"$#,##0")," = ",TEXT(AM24,"$#,##0")) -> 50 x $31,250 = $1,562,500 | AP20: =(AP18+AP19)/2 -> 5.194444444 | AQ20: =$AP$20*AQ18 -> 25.97222222 | AR20: =$AP$20*AR18 -> 576.5833333 | AS20: =$AP$20*AS18 -> 5771.027778 | AT20: =$AP$20*AT18 -> 57715.47222 | AU20: =$AP$20*AU18 -> 6412.830247
P21: =$AD$36 -> 25 x $34,250 = $856,250 | AD21: =CONCATENATE(AN25," x ",TEXT(AO25,"$#,##0")," = ",TEXT(AM25,"$#,##0")) -> 70 x $32,250 = $2,257,500 | AF21: Purchases | AI21: =Periodic!K4 -> Sales | AM21: =Periodic!N4 -> Purchases | AP21: =SUM(AP19:AP20) -> 6.583333333 | AQ21: =$AP$21*AP18 -> 59.25 | AR21: =$AP$21*AQ18 -> 32.91666667 | AS21: =$AP$21*AR18 -> 730.75 | AT21: =$AP$21*AS18 -> 7314.083333 | AU21: =$AP$21*AT18 -> 73147.41667
P22: =$AD$24 -> 30 x $32,250 = $967,500 | AD22: =AM24+AM25 -> 3820000 | AF22: =CONCATENATE(AN24, " units @ ",TEXT(AO24,"$#,##0")," each") -> 50 units @ $31,250 each | AI22: =Periodic!K5 -> Total Sales | AJ22: =Periodic!L5 -> # of Units | AK22: =Periodic!M5 -> Sales Price | AM22: =Periodic!O5 -> Total Cost | AN22: =Periodic!P5 -> # of Units | AO22: =Periodic!Q5 -> Purchase Price
B23: =T23 -> 2017-03-16 | G23: =Y23 -> 90 units @ $49,125 each = | H23: =Z23 -> 4421250 | P23: =$AD$27 -> 30 x $32,750 = $982,500 | T23: =G12 -> 2017-03-16 | Y23: =CONCATENATE(AF29," = ") -> 90 units @ $49,125 each = | Z23: =$AI$26 -> 4421250 | AB23: =CONCATENATE(AN24," x ",TEXT(AO24,"$#,##0")," = ",TEXT(AM24,"$#,##0")) -> 50 x $31,250 = $1,562,500 | AF23: =CONCATENATE(AN25, " units @ ",TEXT(AO25,"$#,##0")," each") -> 70 units @ $32,250 each
P24: =$AD$19 -> 50 x $31,250 = $1,562,500 | AB24: =CONCATENATE("40 x ",TEXT(AO25,"$#,##0")," = ",TEXT(40*AO25,"$#,##0")) -> 40 x $32,250 = $1,290,000 | AD24: =CONCATENATE("30 x ",TEXT(AO25,"$#,##0")," = ",TEXT(30*AO25,"$#,##0")) -> 30 x $32,250 = $967,500 | AF24: =CONCATENATE(AN26, " units @ ",TEXT(AO26,"$#,##0")," each") -> 30 units @ $32,750 each | AM24: =Periodic!O7 -> 1562500 | AN24: =Periodic!P7 -> 50 | AO24: =Periodic!Q7 -> 31250 | AP24: =AP18*2.5 -> 22.5 | AQ24: 12.5 | AR24: 277.5 | AS24: 2777.5 | AT24: 27777.5 | AU24: 3086.388889
P25: =$AD$21 -> 70 x $32,250 = $2,257,500 | AB25: =AM24+40*AO25 -> 2852500 | AF25: =CONCATENATE(AN27, " units @ ",TEXT(AO27,"$#,##0")," each") -> 90 units @ $33,250 each | AM25: =Periodic!O8 -> 2257500 | AN25: =Periodic!P8 -> 70 | AO25: =Periodic!Q8 -> 32250 | AP25: =AP19*2.5 -> 3.472222222 | AQ25: 31.25 | AR25: 693.75 | AS25: 6943.75 | AT25: 69443.75 | AU25: 7715.972222
B26: =T26 -> 2008-06-16 | D26: =V26 -> 30 units @ $32,750 each = | E26: =W26 -> 982500 | L26: =L24 -> 0 | P26: =$AD$31 -> 90 x $33,250 = $2,992,500 | T26: =G7 -> 2008-06-16 | V26: =CONCATENATE(AF24," = ") -> 30 units @ $32,750 each = | W26: =$AM$26 -> 982500 | AD26: =CONCATENATE("30 x ",TEXT(AO25,"$#,##0")," = ",TEXT(30*AO25,"$#,##0")) -> 30 x $32,250 = $967,500 | AF26: =CONCATENATE(AN28, " units @ ",TEXT(AO28,"$#,##0")," each") -> 25 units @ $34,250 each | AI26: =Periodic!K9 -> 4421250 | AJ26: =Periodic!L9 -> 90 | AK26: =Periodic!M9 -> 49125 | AM26: =Periodic!O9 -> 982500 | AN26: =Periodic!P9 -> 30 | AO26: =Periodic!Q9 -> 32750 | AP26: =AP20*2.5 -> 12.98611111 | AQ26: 64.93055556 | AR26: 1441.458333 | AS26: 14427.56944 | AT26: 144288.6806 | AU26: 16032.07562
AD27: =CONCATENATE(AN26, " x ", TEXT(AO26,"$#,##0"), " = ", TEXT(AN26*AO26, "$#,##0")) -> 30 x $32,750 = $982,500 | AM27: =Periodic!O10 -> 2992500 | AN27: =Periodic!P10 -> 90 | AO27: =Periodic!Q10 -> 33250 | AP27: =AP21*2.5 -> 16.45833333 | AQ27: 148.125 | AR27: 82.29166667 | AS27: 1826.875 | AT27: 18285.20833 | AU27: 182868.5417
O28: COGS Drop Down | AD28: =AD22-AB25+AM26 -> 1950000 | AF28: Sales | AI28: =Periodic!K11 -> 6678750 | AJ28: =Periodic!L11 -> 130 | AK28: =Periodic!M11 -> 51375 | AM28: =Periodic!O11 -> 856250 | AN28: =Periodic!P11 -> 25 | AO28: =Periodic!Q11 -> 34250
B29: =T29 -> 2008-08-03 | D29: =V29 -> 90 units @ $33,250 each = | E29: =W29 -> 2992500 | L29: =L26 -> 0 | P29: =$AB$38 -> 30 x $32,250 = $967,500 | T29: =G8 -> 2008-08-03 | V29: =CONCATENATE(AF25," = ") -> 90 units @ $33,250 each = | W29: =$AM$27 -> 2992500 | AD29: =AD26 -> 30 x $32,250 = $967,500 | AF29: =CONCATENATE(AJ26," units @ ",TEXT(AK26,"$#,##0")," each") -> 90 units @ $49,125 each
L30: =L27 -> 0 | P30: =$AB$39 -> 30 x $32,750 = $982,500 | AD30: =AD27 -> 30 x $32,750 = $982,500 | AF30: =CONCATENATE(AJ28," units @ ",TEXT(AK28,"$#,##0")," each") -> 130 units @ $51,375 each
P31: =$AB$24 -> 40 x $32,250 = $1,290,000 | AD31: =CONCATENATE(AN27, " x ", TEXT(AO27, "$#,##0"), " = ", TEXT(AN27*AO27, "$#,##0")) -> 90 x $33,250 = $2,992,500
P32: =$AB$23 -> 50 x $31,250 = $1,562,500 | AD32: =AD28+AM27 -> 4942500 | AI32: COMMENTS: AB24, AB40, AB56, AB72, AD24, AD26, AD40, AD56, AD73 : These cell's formulas contains a hard coded value and will need to be updated if the purchased/sold quantity is changed
B33: =T33 -> 2008-10-11 | D33: =V33 -> 25 units @ $34,250 each = | E33: =W33 -> 856250 | L33: =L29 -> 0 | P33: =$AB$40 -> 70 x $33,250 = $2,327,500 | T33: =G9 -> 2008-10-11 | V33: =CONCATENATE(AF26," = ") -> 25 units @ $34,250 each = | W33: =$AM$28 -> 856250 | AD33: =AD29 -> 30 x $32,250 = $967,500
L34: =L30 -> 0 | AD34: =AD30 -> 30 x $32,750 = $982,500
L35: =L31 -> 0 | O35: Total Drop Down | AD35: =AD31 -> 90 x $33,250 = $2,992,500
P36: =$AD$42 -> 1521250 | AD36: =CONCATENATE(AN28, " x ", TEXT(AO28, "$#,##0"), " = ", TEXT(AM28, "$#,##0")) -> 25 x $34,250 = $856,250
P37: =$AD$28 -> 1950000 | AD37: =AD32+AM28 -> 5798750
B38: =T38 -> 2017-11-01 | G38: =Y38 -> 130 units @ $51,375 each = | H38: =Z38 -> 6678750 | P38: =$AB$25 -> 2852500 | T38: =G13 -> 2017-11-01 | Y38: =CONCATENATE(AF30," = ") -> 130 units @ $51,375 each = | Z38: =$AI$28 -> 6678750 | AB38: =AD33 -> 30 x $32,250 = $967,500
P39: =$AD$22 -> 3820000 | AB39: =AD34 -> 30 x $32,750 = $982,500
P40: =$AB$41 -> 4277500 | AB40: =CONCATENATE(70, " x ", TEXT(AO27,"$#,##0"), " = ", TEXT(AO27*70,"$#,##0")) -> 70 x $33,250 = $2,327,500 | AD40: =CONCATENATE(20, " x ", TEXT(AO27, "$#,##0"), " = ", TEXT(20*AO27, "$#,##0")) -> 20 x $33,250 = $665,000
P41: =$AD$32 -> 4942500 | AB41: =30*AO25+AM26+70*AO27 -> 4277500 | AD41: =AD36 -> 25 x $34,250 = $856,250
G42: Total Sales | H42: =H38+H23 -> 11100000 | L42: =L37-J41 -> 0 | P42: =$AD$37 -> 5798750 | Y42: Total Sales | Z42: =Z38+Z23 -> 11100000 | AD42: =AD37-AB41 -> 1521250
G43: Less COGS | H43: =J41+J25 -> 0 | Y43: Less COGS | Z43: =AB41+AB25 -> 7130000
G44: Gross Profit | H44: =H42-H43 -> 11100000 | Y44: Gross Profit | Z44: =Z42-Z43 -> 3970000
A48: (d) | B48: =CONCATENATE("If ",Identification!B1, " Corporation uses the last-in, first-out (LIFO) inventory method (perpetual approach), what values would be assigned to ending inventory and cost of goods sold? How much is gross profit?") -> If Your Name Here Corporation uses the last-in, first-out (LIFO) inventory method (perpetual approach), what values would be assigned to ending inventory and cost of goods sold? How much is gross profit?
B50: Date | D50: Purchases | G50: Sales | J50: Cost of Goods Sold | L50: Balance | O50: Balance Drop Down | T50: Date | V50: Purchases | Y50: Sales | AB50: Cost of Goods Sold | AD50: Balance
B51: =T51 -> 2008-01-07 | D51: =V51 -> 50 units @ $31,250 each = | E51: =W51 -> 1562500 | P51: =$AD$73 -> 15 x $32,750 = $491,250 | T51: =T19 -> 2008-01-07 | V51: =V19 -> 50 units @ $31,250 each = | W51: =$AM$24 -> 1562500 | AD51: =AD19 -> 50 x $31,250 = $1,562,500
B52: =T52 -> 2008-03-15 | D52: =V52 -> 70 units @ $32,250 each = | E52: =W52 -> 2257500 | L52: =L51 -> 0 | P52: =$AD$68 -> 25 x $34,250 = $856,250 | T52: =T20 -> 2008-03-15 | V52: =V20 -> 70 units @ $32,250 each = | W52: =$AM$25 -> 2257500 | AD52: =AD20 -> 50 x $31,250 = $1,562,500
P53: =$AD$56 -> 30 x $31,250 = $937,500 | AD53: =AD21 -> 70 x $32,250 = $2,257,500
P54: =$AD$59 -> 30 x $32,750 = $982,500 | AD54: =AD22 -> 3820000
B55: =T55 -> 2017-03-16 | G55: =Y55 -> 90 units @ $49,125 each = | H55: =Z55 -> 4421250 | P55: =$AD$51 -> 50 x $31,250 = $1,562,500 | T55: =T23 -> 2017-03-16 | Y55: =Y23 -> 90 units @ $49,125 each = | Z55: =$AI$26 -> 4421250 | AB55: =AD53 -> 70 x $32,250 = $2,257,500
P56: =$AD$53 -> 70 x $32,250 = $2,257,500 | AB56: =CONCATENATE("20 x ",TEXT(AO24,"$#,##0")," = ",TEXT(20*AO24,"$#,##0")) -> 20 x $31,250 = $625,000 | AD56: =CONCATENATE("30 x ",TEXT(AO24,"$#,##0")," = ",TEXT(30*AO24,"$#,##0")) -> 30 x $31,250 = $937,500
P57: =$AD$63 -> 90 x $33,250 = $2,992,500 | AB57: =AM25+20*AO24 -> 2882500
B58: =T58 -> 2008-06-16 | D58: =V58 -> 30 units @ $32,750 each = | E58: =W58 -> 982500 | L58: =L56 -> 0 | T58: =T26 -> 2008-06-16 | V58: =V26 -> 30 units @ $32,750 each = | W58: =$AM$26 -> 982500 | AD58: =AD56 -> 30 x $31,250 = $937,500
O59: COGS Drop Down | AD59: =AD27 -> 30 x $32,750 = $982,500
P60: =$AB$72 -> 15 x $32,750 = $491,250 | AD60: =AD54-AB57+AM26 -> 1920000
B61: =T61 -> 2008-08-03 | D61: =V61 -> 90 units @ $33,250 each = | E61: =W61 -> 2992500 | L61: =L58 -> 0 | P61: =$AB$56 -> 20 x $31,250 = $625,000 | T61: =T29 -> 2008-08-03 | V61: =V29 -> 90 units @ $33,250 each = | W61: =$AM$27 -> 2992500 | AD61: =AD58 -> 30 x $31,250 = $937,500
L62: =L59 -> 0 | P62: =$AB$70 -> 25 x $34,250 = $856,250 | AD62: =AD59 -> 30 x $32,750 = $982,500
P63: =$AB$55 -> 70 x $32,250 = $2,257,500 | AD63: =AD31 -> 90 x $33,250 = $2,992,500
P64: =$AB$71 -> 90 x $33,250 = $2,992,500 | AD64: =AD60+AM27 -> 4912500
B65: =T65 -> 2008-10-11 | D65: =V65 -> 25 units @ $34,250 each = | E65: =W65 -> 856250 | L65: =L61 -> 0 | T65: =T33 -> 2008-10-11 | V65: =V33 -> 25 units @ $34,250 each = | W65: =$AM$28 -> 856250 | AD65: =AD61 -> 30 x $31,250 = $937,500
L66: =L62 -> 0 | AD66: =AD62 -> 30 x $32,750 = $982,500
L67: =L63 -> 0 | O67: Total Drop Down | AD67: =AD63 -> 90 x $33,250 = $2,992,500
P68: =$AD$74 -> 1428750 | AD68: =AD36 -> 25 x $34,250 = $856,250
P69: =$AD$60 -> 1920000 | AD69: =AD64+AM28 -> 5768750
B70: =T70 -> 2017-11-01 | G70: =Y70 -> 130 units @ $51,375 each = | H70: =Z70 -> 6678750 | P70: =$AB$57 -> 2882500 | T70: =T38 -> 2017-11-01 | Y70: =Y38 -> 130 units @ $51,375 each = | Z70: =$AI$28 -> 6678750 | AB70: =AD68 -> 25 x $34,250 = $856,250
P71: =$AD$54 -> 3820000 | AB71: =AD67 -> 90 x $33,250 = $2,992,500
P72: =$AB$73 -> 4340000 | AB72: =CONCATENATE(15, " x ", TEXT(AO26,"$#,##0"), " = ", TEXT(AO26*15,"$#,##0")) -> 15 x $32,750 = $491,250 | AD72: =AD65 -> 30 x $31,250 = $937,500
P73: =$AD$64 -> 4912500 | AB73: =AM28+AM27+15*AO26 -> 4340000 | AD73: =CONCATENATE("15 x ",TEXT(AO26, "$#,##0"), " = ", TEXT(15*AO26, "$#,##0")) -> 15 x $32,750 = $491,250
G74: Total Sales | H74: =H70+H55 -> 11100000 | L74: =L69-J73 -> 0 | P74: =$AD$69 -> 5768750 | Y74: Total Sales | Z74: =Z70+Z55 -> 11100000 | AD74: =AD69-AB73 -> 1428750
G75: Less COGS | H75: =J73+J57 -> 0 | Y75: Less COGS | Z75: =AB73+AB57 -> 7222500
G76: Gross Profit | H76: =H74-H75 -> 11100000 | Y76: Gross Profit | Z76: =Z74-Z75 -> 3877500
P79: A period of falling costs
A80: (e) | B80: The LIFO method of accounting for inventory will always yield a higher cost of goods sold and thus a lower tax liability under which of the situation? | P80: A period of rising costs
